lending/lending_fUSD_20250224
["ID","MTS","AMOUNT","RATE_DAILY","PERIOD"]
[354231121,1740355849837,-500.0,0.0001652,2]
[354231122,1740355849846,-500.0,0.0001652,2]
[354231123,1740355849855,-500.0,0.0001652,2]
[354231124,1740355849864,-500.0,0.0001652,2]
[354231125,1740355849873,-500.0,0.0001652,2]
[354231126,1740355849883,-500.0,0.0001652,2]
[354231127,1740355849892,-500.0,0.0001652,2]
[354231128,1740355849902,-437.610244,0.0001652,2]
[354231129,1740355849911,-500.0,0.0001652,2]
[354231130,1740355849920,-500.0,0.0001652,2]
[354231131,1740355849930,-500.0,0.0001652,2]
[354231132,1740355849939,-557.6572955,0.0001652,2]
[354231133,1740355849948,-567.51153854,0.0001652,2]
[354231134,1740355849958,-386.53228627,0.0001652,2]
[354231135,1740355849969,-500.0,0.0001652,2]
[354231136,1740355849980,-719.96,0.0001652,2]
[354231137,1740355849989,-500.0,0.0001652,2]
[354231138,1740355849998,-500.0,0.0001652,2]
[354231139,1740355850008,-500.0,0.0001652,2]
[354231140,1740355850019,-500.0,0.0001652,2]
[354231141,1740355850028,-500.0,0.0001652,2]
[354231142,1740355850038,-784.98,0.0001652,2]
[354231143,1740355850049,-500.0,0.0001652,2]
[354231144,1740355850058,-500.0,0.0001652,2]
[354231145,1740355850067,-500.0,0.0001652,2]
[354231146,1740355850076,-500.0,0.0001652,2]
[354231147,1740355850085,-500.0,0.0001652,2]
[354231148,1740355850094,-500.0,0.0001652,2]
[354231149,1740355850103,-500.0,0.0001652,2]
[354231150,1740355850113,-500.0,0.0001652,2]
[354231151,1740355850122,-528.99,0.0001652,2]
[354231152,1740355850133,-500.0,0.0001652,2]
[354231153,1740355850143,-500.0,0.0001652,2]
[354231154,1740355850154,-500.0,0.0001652,2]
[354231155,1740355850164,-500.0,0.0001652,2]
[354231156,1740355850174,-539.41,0.0001652,2]
[354231157,1740355850184,-500.0,0.0001652,2]
[354231158,1740355850193,-500.0,0.0001652,2]
[354231159,1740355850202,-544.65,0.0001652,2]
[354231160,1740355850212,-795.27,0.0001652,2]
[354231161,1740355850221,-1562.64,0.0001652,2]
[354231162,1740355850230,-770.65,0.0001652,2]
[354231163,1740355850239,-1793.15,0.0001652,2]
[354231164,1740355850249,-637.43,0.0001652,2]
[354231165,1740355850259,-500.0,0.0001652,2]
[354231166,1740355850268,-500.0,0.0001652,2]
[354231167,1740355850278,-500.0,0.0001652,2]
[354231168,1740355850288,-500.0,0.0001652,2]
[354231169,1740355850297,-672.59,0.0001652,2]
[354231170,1740355850418,-764.16,0.0001652,2]
[354231171,1740355850428,-1050.03,0.0001652,2]
[354231172,1740355850440,-500.0,0.0001652,2]
[354231173,1740355850450,-500.0,0.0001652,2]
[354231174,1740355850459,-884.14,0.0001652,2]
[354231175,1740355850469,-500.0,0.0001652,2]
[354231176,1740355850478,-500.0,0.0001652,2]
[354231177,1740355850488,-500.0,0.0001652,2]
[354231178,1740355850497,-500.0,0.0001652,2]
[354231179,1740355850506,-800.44,0.0001652,2]
[354231180,1740355850515,-500.0,0.0001652,2]
[354231181,1740355850524,-756.97,0.0001652,2]
[354231182,1740355850534,-500.0,0.0001652,2]
[354231183,1740355850544,-500.0,0.0001652,2]
[354231184,1740355850554,-500.0,0.0001652,2]
[354231185,1740355850564,-500.0,0.0001652,2]
[354231186,1740355850573,-500.0,0.0001652,2]
[354231187,1740355850583,-500.0,0.0001652,2]
[354231188,1740355850591,-500.0,0.0001652,2]
[354231189,1740355850601,-500.0,0.0001652,2]
[354231190,1740355850610,-518.71125543,0.0001652,2]
[354231191,1740355850619,-500.0,0.0001652,2]
[354231192,1740355850628,-500.0,0.0001652,2]
[354231193,1740355850637,-500.0,0.0001652,2]
[354231194,1740355850646,-500.0,0.0001652,2]
[354231195,1740355850655,-500.0,0.0001652,2]
[354231196,1740355850664,-987.02,0.0001652,2]
[354231197,1740355850673,-500.0,0.0001652,2]
[354231198,1740355850682,-1178.91,0.0001652,2]
[354231199,1740355850692,-500.0,0.0001652,2]
[354231200,1740355850701,-775.51,0.0001652,2]
[354231201,1740355850710,-852.52,0.0001652,2]
[354231202,1740355850719,-500.0,0.0001652,2]
[354231203,1740355850728,-522.53,0.0001652,2]
[354231204,1740355850738,-500.0,0.0001652,2]
[354231205,1740355850747,-500.0,0.0001652,2]
[354231206,1740355850756,-1163.01,0.0001652,2]
[354231207,1740355850765,-500.0,0.0001652,2]
[354231208,1740355850775,-500.0,0.0001652,2]
[354231209,1740355850783,-500.0,0.0001652,2]
[354231210,1740355850792,-500.0,0.0001652,2]
[354231211,1740355850802,-500.0,0.0001652,2]
[354231212,1740355850810,-500.0,0.0001652,2]
[354231213,1740355850820,-500.0,0.0001652,2]
[354231214,1740355850829,-732.9,0.0001652,2]
[354231215,1740355850839,-500.0,0.0001652,2]
[354231216,1740355850848,-1258.6,0.0001652,2]
[354231217,1740355850855,-895.38,0.0001652,2]
[354231218,1740355850864,-500.0,0.0001652,2]
[354231219,1740355850873,-500.0,0.0001652,2]
[354231220,1740355850882,-500.98,0.0001652,2]
[354231221,1740355850892,-500.0,0.0001652,2]
[354231222,1740355850903,-500.0,0.0001652,2]
[354231223,1740355850912,-500.0,0.0001652,2]
[354231224,1740355850922,-253.66198893,0.0001652,2]
[354231225,1740355850931,-1159.68,0.0001652,2]
[354231226,1740355850941,-500.0,0.0001652,2]
[354231227,1740355850950,-502.34,0.0001652,2]
[354231228,1740355850959,-577.03,0.0001652,2]
[354231229,1740355850970,-1163.36,0.0001652,2]
[354231230,1740355850983,-500.0,0.0001652,2]
[354231231,1740355850992,-500.0,0.0001652,2]
[354231232,1740355851001,-500.0,0.0001652,2]
[354231233,1740355851010,-500.0,0.0001652,2]
[354231234,1740355851019,-500.0,0.0001652,2]
[354231235,1740355851029,-774.24,0.0001652,2]
[354231236,1740355851039,-500.0,0.0001652,2]
[354231237,1740355851048,-500.0,0.0001652,2]
[354231238,1740355851058,-726.37,0.0001652,2]
[354231239,1740355851067,-500.0,0.0001652,2]
[354231240,1740355851077,-500.0,0.0001652,2]
[354231241,1740355851086,-969.73,0.0001652,2]
[354231242,1740355851095,-1124.13,0.0001652,2]
[354231243,1740355851105,-804.37,0.0001652,2]
[354231244,1740355851114,-858.08,0.0001652,2]
[354231245,1740355851123,-500.0,0.0001652,2]
[354231246,1740355851132,-859.45,0.0001652,2]
[354231247,1740355851142,-500.0,0.0001652,2]
[354231248,1740355851152,-633.58,0.0001652,2]
[354231249,1740355851161,-500.0,0.0001652,2]
[354231250,1740355851171,-500.0,0.0001652,2]
[354231251,1740355851181,-500.0,0.0001652,2]
[354231252,1740355851192,-1127.97,0.0001652,2]
[354231253,1740355851202,-500.0,0.0001652,2]
[354231254,1740355851211,-500.0,0.0001652,2]
[354231255,1740355851220,-500.0,0.0001652,2]
[354231256,1740355851230,-500.0,0.0001652,2]
[354231257,1740355851239,-1357.16,0.0001652,2]
[354231258,1740355851248,-872.42,0.0001652,2]
[354231259,1740355851258,-611.05334042,0.0001652,2]
[354231260,1740355851268,-500.0,0.0001652,2]
[354231261,1740355851277,-500.0,0.0001652,2]
[354231262,1740355851287,-857.03,0.0001652,2]
[354231263,1740355851296,-500.0,0.0001652,2]
[354231264,1740355851305,-500.0,0.0001652,2]
[354231265,1740355851314,-505.19244925,0.0001652,2]
[354231266,1740355851323,-500.0,0.0001652,2]
[354231267,1740355851333,-500.0,0.0001652,2]
[354231268,1740355851342,-432.99429353,0.0001652,2]
[354231269,1740355851351,-1158.5,0.0001652,2]
[354231270,1740355851361,-500.0,0.0001652,2]
[354231271,1740355851370,-1344.43,0.0001652,2]
[354231272,1740355851379,-500.0,0.0001652,2]
[354231273,1740355851388,-500.0,0.0001652,2]
[354231274,1740355851397,-500.0,0.0001652,2]
[354231275,1740355851409,-676.98,0.0001652,2]
[354231276,1740355851418,-500.0,0.0001652,2]
[354231277,1740355851427,-500.0,0.0001652,2]
[354231278,1740355851437,-640.2,0.0001652,2]
[354231279,1740355851447,-688.11,0.0001652,2]
[354231280,1740355851456,-818.14,0.0001652,2]
[354231281,1740355851465,-1345.2,0.0001652,2]
[354231282,1740355851474,-500.0,0.0001652,2]
[354231283,1740355851483,-500.0,0.0001652,2]
[354231284,1740355851492,-564.39,0.0001652,2]
[354231285,1740355851502,-500.0,0.0001652,2]
[354231286,1740355851511,-500.0,0.0001652,2]
[354231287,1740355851520,-500.0,0.0001652,2]
[354231288,1740355851529,-1034.68,0.0001652,2]
[354231289,1740355851538,-716.04,0.0001652,2]
[354231290,1740355851547,-500.0,0.0001652,2]
[354231291,1740355851557,-500.0,0.0001652,2]
[354231292,1740355851567,-500.0,0.0001652,2]
[354231293,1740355851577,-500.0,0.0001652,2]
[354231294,1740355851586,-551.68,0.0001652,2]
[354231295,1740355851595,-500.0,0.0001652,2]
[354231296,1740355851605,-500.0,0.0001652,2]
[354231297,1740355851614,-500.0,0.0001652,2]
[354231298,1740355851624,-609.18,0.0001652,2]
[354231299,1740355851633,-500.0,0.0001652,2]
[354231300,1740355851643,-1071.24,0.0001652,2]
[354231301,1740355851654,-799.06,0.0001652,2]
[354231302,1740355851663,-1006.68,0.0001652,2]
[354231303,1740355851672,-1415.15,0.0001652,2]
[354231304,1740355851682,-500.0,0.0001652,2]
[354231305,1740355851691,-500.0,0.0001652,2]
[354231306,1740355851700,-500.0,0.0001652,2]
[354231307,1740355851710,-500.0,0.0001652,2]
[354231308,1740355851719,-500.0,0.0001652,2]
[354231309,1740355851730,-784.83,0.0001652,2]
[354231310,1740355851739,-500.0,0.0001652,2]
[354231311,1740355851750,-500.0,0.0001652,2]
[354231312,1740355851760,-500.0,0.0001652,2]
[354231313,1740355851770,-500.0,0.0001652,2]
[354231314,1740355851781,-500.0,0.0001652,2]
[354231315,1740355851790,-766.77,0.0001652,2]
[354231316,1740355851799,-500.0,0.0001652,2]
[354231317,1740355851809,-717.66,0.0001652,2]
[354231318,1740355851819,-500.0,0.0001652,2]
[354231319,1740355851829,-564.19,0.0001652,2]
[354231320,1740355851839,-500.0,0.0001652,2]
[354231321,1740355851848,-822.42,0.0001652,2]
[354231322,1740355851858,-712.5,0.0001652,2]
[354231323,1740355851867,-500.0,0.0001652,2]
[354231324,1740355851877,-800.3,0.0001652,2]
[354231325,1740355851886,-500.0,0.0001652,2]
[354231326,1740355851895,-500.0,0.0001652,2]
[354231327,1740355851907,-645.79,0.0001652,2]
[354231328,1740355851917,-671.89,0.0001652,2]
[354231329,1740355851926,-500.0,0.0001652,2]
[354231330,1740355851936,-500.0,0.0001652,2]
[354231331,1740355851945,-574.06,0.0001652,2]
[354231332,1740355851954,-500.0,0.0001652,2]
[354231333,1740355851963,-500.0,0.0001652,2]
[354231334,1740355851975,-1182.03,0.0001652,2]
[354231335,1740355851985,-500.0,0.0001652,2]
[354231336,1740355851994,-500.0,0.0001652,2]
[354231337,1740355852003,-763.67,0.0001652,2]
[354231338,1740355852015,-1371.95,0.0001652,2]
[354231339,1740355852024,-624.26,0.0001652,2]
[354231340,1740355852034,-500.0,0.0001652,2]
[354231341,1740355852043,-530.75,0.0001652,2]
[354231342,1740355852053,-500.0,0.0001652,2]
[354231343,1740355852063,-1224.41,0.0001652,2]
[354231344,1740355852072,-500.0,0.0001652,2]
[354231345,1740355852081,-500.0,0.0001652,2]
[354231346,1740355852090,-748.14,0.0001652,2]
[354231347,1740355852099,-500.0,0.0001652,2]
[354231348,1740355852108,-546.35,0.0001652,2]
[354231349,1740355852118,-500.0,0.0001652,2]
[354231350,1740355852127,-500.0,0.0001652,2]
[354231351,1740355852137,-863.94,0.0001652,2]
[354231352,1740355852147,-500.0,0.0001652,2]
[354231353,1740355852157,-500.0,0.0001652,2]
[354231354,1740355852167,-500.0,0.0001652,2]
[354231355,1740355852176,-528.04,0.0001652,2]
[354231356,1740355852186,-768.15,0.0001652,2]
[354231357,1740355852196,-500.0,0.0001652,2]
[354231358,1740355852206,-500.0,0.0001652,2]
[354231359,1740355852215,-1333.13,0.0001652,2]
[354231360,1740355852226,-500.0,0.0001652,2]
[354231361,1740355852236,-670.41,0.0001652,2]
[354231362,1740355852245,-503.81986225,0.0001652,2]
[354231363,1740355852255,-500.0,0.0001652,2]
[354231364,1740355852264,-500.0,0.0001652,2]
[354231365,1740355852273,-724.95,0.0001652,2]
[354231366,1740355852282,-500.0,0.0001652,2]
[354231367,1740355852291,-1220.59,0.0001652,2]
[354231368,1740355852301,-500.0,0.0001652,2]
[354231369,1740355852310,-783.43,0.0001652,2]
[354231370,1740355852319,-500.0,0.0001652,2]
[354231371,1740355852329,-500.0,0.0001652,2]
[354231372,1740355852338,-500.0,0.0001652,2]
[354231373,1740355852348,-500.0,0.0001652,2]
[354231374,1740355852358,-500.0,0.0001652,2]
[354231375,1740355852367,-500.0,0.0001652,2]
[354231376,1740355852376,-824.23,0.0001652,2]
[354231377,1740355852385,-500.0,0.0001652,2]
[354231378,1740355852394,-523.42,0.0001652,2]
[354231379,1740355852404,-500.0,0.0001652,2]
[354231380,1740355852414,-500.0,0.0001652,2]
[354231381,1740355852424,-500.0,0.0001652,2]
[354231382,1740355852434,-500.0,0.0001652,2]
[354231383,1740355852443,-500.0,0.0001652,2]
[354231384,1740355852453,-500.0,0.0001652,2]
[354231385,1740355852462,-500.0,0.0001652,2]
[354231386,1740355852726,-500.0,0.0001652,2]
[354231387,1740355852810,-500.0,0.0001652,2]
[354231388,1740355852820,-500.0,0.0001652,2]
[354231389,1740355852830,-500.0,0.0001652,2]
[354231390,1740355852839,-1310.96,0.0001652,2]
[354231391,1740355852848,-782.62,0.0001652,2]
[354231392,1740355852858,-539.41,0.0001652,2]
[354231393,1740355852867,-500.0,0.0001652,2]
[354231394,1740355852877,-1300.68,0.0001652,2]
[354231395,1740355852887,-500.0,0.0001652,2]
[354231396,1740355852896,-500.0,0.0001652,2]
[354231397,1740355852907,-570.43,0.0001652,2]
[354231398,1740355852918,-587.7,0.0001652,2]
[354231399,1740355852928,-500.0,0.0001652,2]
[354231400,1740355852939,-635.96,0.0001652,2]
[354231401,1740355852948,-500.0,0.0001652,2]
[354231402,1740355852958,-558.30314924,0.0001652,2]
[354231403,1740355852968,-500.0,0.0001652,2]
[354231404,1740355852981,-500.0,0.0001652,2]
[354231405,1740355852991,-500.0,0.0001652,2]
[354231406,1740355853001,-500.0,0.0001652,2]
[354231407,1740355853011,-500.0,0.0001652,2]
[354231408,1740355853020,-500.0,0.0001652,2]
[354231409,1740355853030,-525.92,0.0001652,2]
[354231410,1740355853040,-1055.18,0.0001652,2]
[354231411,1740355853050,-500.0,0.0001652,2]
[354231412,1740355853060,-500.0,0.0001652,2]
[354231413,1740355853070,-500.0,0.0001652,2]
[354231414,1740355853079,-500.0,0.0001652,2]
[354231415,1740355853088,-500.0,0.0001652,2]
[354231416,1740355853098,-500.0,0.0001652,2]
[354231417,1740355853107,-500.0,0.0001652,2]
[354231418,1740355853117,-729.59,0.0001652,2]
[354231419,1740355853127,-1437.74,0.0001652,2]
[354231420,1740355853137,-500.0,0.0001652,2]
[354231421,1740355853147,-500.0,0.0001652,2]
[354231422,1740355853157,-500.0,0.0001652,2]
[354231423,1740355853167,-500.0,0.0001652,2]
[354231424,1740355853177,-500.0,0.0001652,2]
[354231425,1740355853186,-500.0,0.0001652,2]
[354231426,1740355853197,-1572.79,0.0001652,2]
[354231427,1740355853206,-789.72,0.0001652,2]
[354231428,1740355853216,-500.0,0.0001652,2]
[354231429,1740355853225,-500.0,0.0001652,2]
[354231430,1740355853235,-500.0,0.0001652,2]
[354231431,1740355853245,-500.0,0.0001652,2]
[354231432,1740355853256,-500.0,0.0001652,2]
[354231433,1740355853266,-500.0,0.0001652,2]
[354231434,1740355853275,-500.0,0.0001652,2]
[354231435,1740355853285,-520.18,0.0001652,2]
[354231436,1740355853294,-744.25,0.0001652,2]
[354231437,1740355853304,-500.0,0.0001652,2]
[354231438,1740355853313,-500.0,0.0001652,2]
[354231439,1740355853322,-1659.6,0.0001652,2]
[354231440,1740355853332,-500.0,0.0001652,2]
[354231441,1740355853341,-500.0,0.0001652,2]
[354231442,1740355853351,-500.0,0.0001652,2]
[354231443,1740355853360,-500.0,0.0001652,2]
[354231444,1740355853369,-500.0,0.0001652,2]
[354231445,1740355853379,-500.0,0.0001652,2]
[354231446,1740355853389,-984.69,0.0001652,2]
[354231447,1740355853398,-500.0,0.0001652,2]
[354231448,1740355853409,-500.0,0.0001652,2]
[354231449,1740355853419,-435.97056713,0.0001652,2]
[354231450,1740355853428,-500.0,0.0001652,2]
[354231451,1740355853438,-500.0,0.0001652,2]
[354231452,1740355853447,-681.63,0.0001652,2]
[354231453,1740355853457,-1022.35,0.0001652,2]
[354231454,1740355853466,-500.0,0.0001652,2]
[354231455,1740355853475,-500.0,0.0001652,2]
[354231456,1740355853485,-500.0,0.0001652,2]
[354231457,1740355853494,-500.0,0.0001652,2]
[354231458,1740355853503,-500.0,0.0001652,2]
[354231459,1740355853513,-543.01603052,0.0001652,2]
[354231460,1740355853523,-500.0,0.0001652,2]
[354231461,1740355853533,-500.0,0.0001652,2]
[354231462,1740355853542,-500.0,0.0001652,2]
[354231463,1740355853552,-500.0,0.0001652,2]
[354231464,1740355853561,-500.0,0.0001652,2]
[354231465,1740355853571,-500.0,0.0001652,2]
[354231466,1740355853580,-500.0,0.0001652,2]
[354231467,1740355853590,-1348.63,0.0001652,2]
[354231468,1740355853600,-815.18,0.0001652,2]
[354231469,1740355853609,-1269.43,0.0001652,2]
[354231470,1740355853619,-204.88669787,0.0001652,2]
[354231471,1740355853629,-500.0,0.0001652,2]
[354231472,1740355853638,-500.0,0.0001652,2]
[354231473,1740355853647,-530.89,0.0001652,2]
[354231474,1740355853657,-500.0,0.0001652,2]
[354231475,1740355853667,-500.0,0.0001652,2]
[354231476,1740355853676,-500.0,0.0001652,2]
[354231477,1740355853686,-504.52704445,0.0001652,2]
[354231478,1740355853695,-500.0,0.0001652,2]
[354231479,1740355853705,-805.69,0.0001652,2]
[354231480,1740355853715,-506.49,0.0001652,2]
[354231481,1740355853724,-500.0,0.0001652,2]
[354231482,1740355853733,-500.0,0.0001652,2]
[354231483,1740355853742,-1976.99,0.0001652,2]
[354231484,1740355853752,-500.0,0.0001652,2]
[354231485,1740355853762,-500.0,0.0001652,2]
[354231486,1740355853771,-500.0,0.0001652,2]
[354231487,1740355853781,-500.0,0.0001652,2]
[354231488,1740355853790,-618.93,0.0001652,2]
[354231489,1740355853800,-500.0,0.0001652,2]
[354231490,1740355853809,-500.0,0.0001652,2]
[354231491,1740355853818,-500.0,0.0001652,2]
[354231492,1740355853828,-505.13056368,0.0001652,2]
[354231493,1740355853837,-500.0,0.0001652,2]
[354231494,1740355853847,-504.42,0.0001652,2]
[354231495,1740355853856,-500.0,0.0001652,2]
[354231496,1740355853866,-756.2,0.0001652,2]
[354231497,1740355853875,-500.0,0.0001652,2]
[354231498,1740355853885,-1647.49,0.0001652,2]
[354231499,1740355853894,-1492.14,0.0001652,2]
[354231500,1740355853904,-1925.73,0.0001652,2]
[354231501,1740355853914,-500.0,0.0001652,2]
[354231502,1740355853923,-500.0,0.0001652,2]
[354231503,1740355853933,-500.0,0.0001652,2]
[354231504,1740355853943,-500.0,0.0001652,2]
[354231505,1740355853952,-500.0,0.0001652,2]
[354231506,1740355853962,-500.0,0.0001652,2]
[354231507,1740355853972,-500.0,0.0001652,2]
[354231508,1740355853985,-3422.24,0.0001652,2]
[354231509,1740355853994,-725.89,0.0001652,2]
[354231510,1740355854004,-500.0,0.0001652,2]
[354231511,1740355854015,-500.0,0.0001652,2]
[354231512,1740355854025,-500.0,0.0001652,2]
[354231513,1740355854035,-500.0,0.0001652,2]
[354231514,1740355854046,-589.32981889,0.0001652,2]
[354231515,1740355854057,-500.0,0.0001652,2]
[354231516,1740355854067,-500.0,0.0001652,2]
[354231517,1740355854077,-938.42,0.0001652,2]
[354231518,1740355854087,-790.45,0.0001652,2]
[354231519,1740355854097,-500.0,0.0001652,2]
[354231520,1740355854107,-500.0,0.0001652,2]
[354231521,1740355854117,-1074.79,0.0001652,2]
[354231522,1740355854126,-500.0,0.0001652,2]
[354231523,1740355854135,-645.67,0.0001652,2]
[354231524,1740355854145,-551.78,0.0001652,2]
[354231525,1740355854156,-500.0,0.0001652,2]
[354231526,1740355854166,-536.5,0.0001652,2]
[354231527,1740355854175,-500.0,0.0001652,2]
[354231528,1740355854185,-500.0,0.0001652,2]
[354231529,1740355854195,-500.0,0.0001652,2]
[354231530,1740355854204,-2403.21,0.0001652,2]
[354231531,1740355854214,-500.0,0.0001652,2]
[354231532,1740355854223,-500.0,0.0001652,2]
[354231533,1740355854233,-500.0,0.0001652,2]
[354231534,1740355854243,-500.0,0.0001652,2]
[354231535,1740355854253,-336.29515814,0.0001652,2]
[354231536,1740355854263,-500.0,0.0001652,2]
[354231537,1740355854272,-1551.5,0.0001652,2]
[354231538,1740355854281,-500.0,0.0001652,2]
[354231539,1740355854290,-500.0,0.0001652,2]
[354231540,1740355854299,-500.0,0.0001652,2]
[354231541,1740355854309,-500.0,0.0001652,2]
[354231542,1740355854318,-500.0,0.0001652,2]
[354231543,1740355854328,-6343.05,0.0001652,2]
[354231544,1740355854337,-500.0,0.0001652,2]
[354231545,1740355854347,-500.0,0.0001652,2]
[354231546,1740355854357,-889.84,0.0001652,2]
[354231547,1740355854366,-500.0,0.0001652,2]
[354231548,1740355854375,-500.0,0.0001652,2]
[354231549,1740355854385,-500.0,0.0001652,2]
[354231550,1740355854394,-500.0,0.0001652,2]
[354231551,1740355854404,-515.69981819,0.0001652,2]
[354231552,1740355854414,-500.0,0.0001652,2]
[354231553,1740355854427,-500.0,0.0001652,2]
[354231554,1740355854436,-508.08497455,0.0001652,2]
[354231555,1740355854446,-500.0,0.0001652,2]
[354231556,1740355854455,-1036.1,0.0001652,2]
[354231557,1740355854465,-500.0,0.0001652,2]
[354231558,1740355854474,-800.22,0.0001652,2]
[354231559,1740355854483,-500.0,0.0001652,2]
[354231560,1740355854492,-500.0,0.0001652,2]
[354231561,1740355854502,-500.0,0.0001652,2]
[354231562,1740355854511,-1128.56,0.0001652,2]
[354231563,1740355854519,-500.0,0.0001652,2]
[354231564,1740355854529,-3673.96,0.0001652,2]
[354231565,1740355854538,-500.0,0.0001652,2]
[354231566,1740355854547,-500.0,0.0001652,2]
[354231567,1740355854556,-500.0,0.0001652,2]
[354231568,1740355854565,-500.0,0.0001652,2]
[354231569,1740355854574,-1275.22,0.0001652,2]
[354231570,1740355854583,-500.0,0.0001652,2]
[354231571,1740355854592,-500.0,0.0001652,2]
[354231572,1740355854602,-3238.87,0.0001652,2]
[354231573,1740355854611,-500.0,0.0001652,2]
[354231574,1740355854620,-2791.47,0.0001652,2]
[354231575,1740355854630,-500.0,0.0001652,2]
[354231576,1740355854639,-1108.25,0.0001652,2]
[354231577,1740355854648,-500.0,0.0001652,2]
[354231578,1740355854658,-670.61,0.0001652,2]
[354231579,1740355854667,-654.52,0.0001652,2]
[354231580,1740355854677,-1547.6,0.0001652,2]
[354231581,1740355854686,-697.59,0.0001652,2]
[354231582,1740355854695,-500.0,0.0001652,2]
[354231583,1740355854704,-500.0,0.0001652,2]
[354231584,1740355854713,-1611.96,0.0001652,2]
[354231585,1740355854722,-3395.33,0.0001652,2]
[354231586,1740355854732,-927.34,0.0001652,2]
[354231587,1740355854741,-500.0,0.0001652,2]
[354231588,1740355854751,-500.0,0.0001652,2]
[354231589,1740355854760,-500.0,0.0001652,2]
[354231590,1740355854770,-500.0,0.0001652,2]
[354231591,1740355854779,-4134.6,0.0001652,2]
[354231592,1740355854789,-1748.74,0.0001652,2]
[354231593,1740355854799,-500.0,0.0001652,2]
[354231594,1740355854808,-500.0,0.0001652,2]
[354231595,1740355854817,-2787.95,0.0001652,2]
[354231596,1740355854827,-1114.38,0.0001652,2]
[354231597,1740355854836,-500.0,0.0001652,2]
[354231598,1740355854846,-930.5,0.0001652,2]
[354231599,1740355854856,-500.0,0.0001652,2]
[354231600,1740355854865,-858.58,0.0001652,2]
[354231601,1740355854876,-1751.06,0.0001652,2]
[354231602,1740355854886,-500.0,0.0001652,2]
[354231603,1740355854895,-500.0,0.0001652,2]
[354231604,1740355854904,-514.65186075,0.0001652,2]
[354231605,1740355854914,-1413.15,0.0001652,2]
[354231606,1740355854923,-500.0,0.0001652,2]
[354231607,1740355854933,-511.31224749,0.0001652,2]
[354231608,1740355854943,-866.59,0.0001652,2]
[354231609,1740355854953,-2394.06,0.0001652,2]
[354231610,1740355854962,-1189.52,0.0001652,2]
[354231611,1740355854972,-500.0,0.0001652,2]
[354231612,1740355854981,-1741.93,0.0001652,2]
[354231613,1740355854991,-606.08422974,0.0001652,2]
[354231614,1740355855005,-500.0,0.0001652,2]
[354231615,1740355855014,-500.0,0.0001652,2]
[354231616,1740355855024,-743.81,0.0001652,2]
[354231617,1740355855033,-737.07,0.0001652,2]
[354231618,1740355855043,-1914.85,0.0001652,2]
[354231619,1740355855052,-500.0,0.0001652,2]
[354231620,1740355855061,-804.47,0.0001652,2]